bitfinex/quotes_SOLUSD_20230101
["timestamp","ask_amount","ask_price","bid_price","bid_amount"]
[1672553594724,40.0,9.8194,9.8136,17.3556201]
[1672553594928,76.47,9.8193,9.8136,17.3556201]
[1672553595149,40.0,9.8192,9.8136,17.3556201]
[1672553595571,76.47,9.8191,9.8136,17.3556201]
[1672553595781,40.0,9.8194,9.8136,17.3556201]
[1672553596101,40.0,9.8192,9.8136,17.3556201]
[1672553596292,40.0,9.819,9.8136,17.3556201]
[1672553596838,40.0,9.8192,9.8136,17.3556201]
[1672553597048,76.47,9.8191,9.8136,17.3556201]
[1672553597571,40.0,9.8196,9.8136,17.3556201]
[1672553597572,40.0,9.8194,9.8136,17.3556201]
[1672553597780,76.47,9.8193,9.8136,17.3556201]
[1672553598199,40.0,9.8196,9.8136,17.3556201]
[1672553598519,76.46,9.8199,9.8136,17.3556201]
[1672553598716,76.46,9.8201,9.8136,17.3556201]
[1672553599252,76.44,9.8224,9.8136,17.3556201]
[1672553599465,40.0,9.821,9.8137,76.51]
[1672553599679,76.45,9.8209,9.8136,17.3556201]
[1672553600203,76.45,9.8211,9.8136,17.3556201]
[1672553600393,40.0,9.821,9.8136,17.3556201]
[1672553600599,76.45,9.8209,9.8136,17.3556201]
[1672553601667,40.0,9.8208,9.8136,17.3556201]
[1672553601877,40.0,9.8206,9.8136,17.3556201]
[1672553602091,76.46,9.8205,9.8136,17.3556201]
[1672553602297,40.0,9.8204,9.8136,17.3556201]
[1672553603126,76.46,9.8205,9.8136,17.3556201]
[1672553603860,40.0,9.821,9.8136,17.3556201]
[1672553604069,40.0,9.8208,9.8136,17.3556201]
[1672553604280,76.45,9.8207,9.8136,17.3556201]
[1672553604695,40.0,9.8208,9.8136,17.3556201]
[1672553604912,40.0,9.8206,9.8136,17.3556201]
[1672553605136,76.46,9.8205,9.8136,17.3556201]
[1672553605347,40.0,9.8204,9.8136,17.3556201]
[1672553605546,76.46,9.8203,9.8136,17.3556201]
[1672553607534,40.0,9.8206,9.8136,17.3556201]
[1672553607745,40.0,9.8204,9.8136,17.3556201]
[1672553607964,40.0,9.8202,9.8136,17.3556201]
[1672553610079,40.0,9.82,9.8136,17.3556201]
[1672553610270,40.0,9.8198,9.8136,17.3556201]
[1672553610483,76.46,9.8197,9.8136,17.3556201]
[1672553610819,40.0,9.8196,9.8136,17.3556201]
[1672553611018,76.46,9.8195,9.8136,17.3556201]
[1672553611437,40.0,9.8194,9.8136,17.3556201]
[1672553611650,76.47,9.8193,9.8136,17.3556201]
[1672553612395,76.46,9.8195,9.8136,17.3556201]
[1672553612588,76.46,9.8199,9.8136,17.3556201]
[1672553613010,76.46,9.8205,9.8136,17.3556201]
[1672553613429,40.0,9.8204,9.8136,17.3556201]
[1672553613657,76.46,9.8203,9.8136,17.3556201]
[1672553613847,40.0,9.8202,9.8136,17.3556201]
[1672553614059,76.46,9.8201,9.8136,17.3556201]
[1672553614794,40.0,9.82,9.8136,17.3556201]
[1672553615006,40.0,9.8198,9.8136,17.3556201]
[1672553615209,76.46,9.8197,9.8136,17.3556201]
[1672553615856,40.0,9.8196,9.8136,17.3556201]
[1672553616070,40.0,9.8194,9.8136,17.3556201]
[1672553616267,76.47,9.8193,9.8136,17.3556201]
[1672553616477,40.0,9.8192,9.8136,17.3556201]
[1672553616688,40.0,9.819,9.8136,17.3556201]
[1672553616923,40.0,9.8188,9.8136,17.3556201]
[1672553617131,76.47,9.8187,9.8136,17.3556201]
[1672553617342,40.0,9.8186,9.8136,17.3556201]
[1672553617754,76.47,9.8187,9.8136,17.3556201]
[1672553618190,40.0,9.819,9.8136,17.3556201]
[1672553618724,40.0,9.8192,9.8136,17.3556201]
[1672553620073,76.47,9.8193,9.8136,17.3556201]
[1672553620284,40.0,9.8192,9.8136,17.3556201]
[1672553621664,76.47,9.8191,9.8136,17.3556201]
[1672553621855,76.47,9.8193,9.8136,17.3556201]
[1672553622060,76.46,9.8195,9.8136,17.3556201]
[1672553622275,76.46,9.8197,9.8136,17.3556201]
[1672553622505,40.0,9.8206,9.8136,17.3556201]
[1672553622727,40.0,9.8204,9.8136,17.3556201]
[1672553623028,40.0,9.8202,9.8136,17.3556201]
[1672553623238,76.46,9.8201,9.8136,17.3556201]
[1672553623447,40.0,9.82,9.8136,17.3556201]
[1672553623664,40.0,9.8198,9.8136,17.3556201]
[1672553623857,76.46,9.8197,9.8136,17.3556201]
[1672553624066,40.0,9.8196,9.8136,17.3556201]
[1672553625554,76.46,9.8195,9.8136,17.3556201]
[1672553625865,76.46,9.8197,9.8136,17.3556201]
[1672553626496,40.0,9.8196,9.8136,17.25042157]
[1672553626710,76.46,9.8195,9.8136,17.25042157]
[1672553627135,76.46,9.8197,9.8136,17.25042157]
[1672553627450,40.0,9.82,9.8136,17.25042157]
[1672553627665,76.46,9.8199,9.8136,17.25042157]
[1672553627868,40.0,9.8198,9.8136,17.25042157]
[1672553628079,76.46,9.8197,9.8136,17.25042157]
[1672553628395,40.0,9.8196,9.8136,17.25042157]
[1672553628601,40.0,9.8194,9.8136,17.25042157]
[1672553629240,40.0,9.8192,9.8136,17.25042157]
[1672553629551,40.0,9.819,9.8136,17.25042157]
[1672553629768,40.0,9.8188,9.8136,17.25042157]
[1672553629971,76.47,9.8187,9.8136,17.25042157]
[1672553630166,40.0,9.8186,9.8136,17.25042157]
[1672553630383,76.47,9.8185,9.8136,17.25042157]
[1672553631748,40.0,9.8184,9.8136,17.25042157]
[1672553631959,76.47,9.8183,9.8136,17.25042157]
[1672553632376,40.0,9.8182,9.8136,17.25042157]
[1672553632603,40.0,9.818,9.8136,17.25042157]
[1672553632918,76.48,9.8179,9.8136,17.25042157]
[1672553633127,40.0,9.8178,9.8136,17.25042157]
[1672553633956,76.48,9.8179,9.8136,17.25042157]
[1672553634165,40.0,9.8186,9.8136,17.25042157]
[1672553634385,76.47,9.8185,9.8136,17.25042157]
[1672553634793,76.46,9.8205,9.8136,17.25042157]
[1672553635006,40.0,9.8204,9.8136,17.25042157]
[1672553635215,40.0,9.8202,9.8136,17.25042157]
[1672553635434,76.46,9.8201,9.8136,17.25042157]
[1672553635639,40.0,9.82,9.8136,17.25042157]
[1672553635855,40.0,9.8198,9.8136,17.25042157]
[1672553636051,40.0,9.8196,9.8136,17.25042157]
[1672553636269,76.46,9.8195,9.8136,17.25042157]
[1672553636580,76.46,9.8197,9.8136,17.25042157]
[1672553637415,76.46,9.8199,9.8136,17.25042157]
[1672553637641,76.46,9.8201,9.8136,17.25042157]
[1672553638687,40.0,9.82,9.8136,17.25042157]
[1672553638901,40.0,9.8198,9.8136,17.25042157]
[1672553639228,76.46,9.8197,9.8136,17.25042157]
[1672553639433,40.0,9.8206,9.8136,17.25042157]
[1672553639644,76.46,9.8205,9.8136,17.25042157]
[1672553639864,40.0,9.8204,9.8136,17.25042157]
[1672553640050,40.0,9.8202,9.8136,17.25042157]
[1672553640260,76.46,9.8201,9.8136,17.25042157]
[1672553640788,40.0,9.8204,9.8136,17.25042157]
[1672553641000,76.46,9.8203,9.8136,17.25042157]
[1672553641203,40.0,9.8202,9.8136,17.25042157]
[1672553641407,76.46,9.8201,9.8136,17.25042157]
[1672553641645,40.0,9.82,9.8136,17.25042157]
[1672553641859,40.0,9.8198,9.8136,17.25042157]
[1672553642167,40.0,9.8196,9.8136,17.25042157]
[1672553642486,40.0,9.8194,9.8136,17.25042157]
[1672553642683,76.45,9.8209,9.8136,17.25042157]
[1672553642895,1385.60074799,10.015,9.8136,17.25042157]
[1672553642896,76.45,9.821,9.8137,40.0]
[1672553643093,76.44,9.8221,9.8137,40.0]
[1672553643312,76.45,9.821,9.8137,40.0]
[1672553643830,23.2924,9.8272,9.8137,40.0]
[1672553643831,76.23400742,9.8262,9.814,40.0]
[1672553644039,76.23400742,9.8301,9.8142,305.8]
[1672553644259,76.23400742,9.8302,9.8144,305.8]
[1672553644478,160.395,9.8329,9.8143,96.5]
[1672553644479,76.38,9.8301,9.8147,40.0]
[1672553644687,76.37,9.8317,9.8149,305.8]
[1672553644875,100.0006,9.8317,9.8151,305.8]
[1672553645090,100.0006,9.8317,9.8153,345.8]
[1672553645299,100.0006,9.8317,9.8155,305.8]
[1672553645509,100.0006,9.8317,9.8157,305.8]
[1672553645510,63.6306,9.8316,9.8157,305.8]
[1672553645739,40.0,9.8314,9.816,40.0]
[1672553645929,76.37,9.8313,9.8162,305.8]
[1672553646140,40.0,9.8312,9.8164,305.8]
[1672553646350,40.0,9.831,9.8167,40.0]
[1672553646561,40.0,9.8308,9.817,40.0]
[1672553646773,76.38,9.8307,9.8172,305.8]
[1672553646995,40.0,9.8306,9.8174,305.8]
[1672553647209,76.38,9.8305,9.8177,40.0]
[1672553647425,40.0,9.8304,9.8179,305.8]
[1672553647632,40.0,9.8302,9.8181,345.8]
[1672553647839,40.0,9.83,9.8184,40.0]
[1672553648052,76.38,9.8299,9.8186,305.8]
[1672553648261,40.0,9.8298,9.8188,305.8]
[1672553648583,40.0,9.8296,9.819,345.8]
[1672553648789,40.0,9.8294,9.8193,40.0]
[1672553649000,76.39,9.8293,9.8194,402.27]
[1672553649210,40.0,9.8292,9.8195,40.0]
[1672553649423,76.39,9.8291,9.8197,40.0]
[1672553649633,40.0,9.829,9.8198,76.46]
[1672553649845,40.0,9.8288,9.8198,76.46]
[1672553650044,40.0,9.8288,9.8199,22.8145]
[1672553650251,40.0,9.8288,9.82,76.46]
[1672553650787,40.0,9.8288,9.8201,22.8145]
[1672553651001,40.0,9.8288,9.8202,76.46]
[1672553651212,40.0,9.8288,9.8202,99.6904]
[1672553651956,40.0,9.8288,9.8203,23.2304]
[1672553652161,40.0,9.8288,9.8204,76.46]
[1672553652364,40.0,9.8288,9.8204,99.6904]
[1672553652581,76.39,9.8289,9.8204,99.6904]
[1672553652790,76.39,9.8291,9.8205,40.0]
[1672553653002,76.39,9.8291,9.8206,76.46]
[1672553653319,40.0,9.829,9.8206,76.46]
[1672553653635,76.39,9.8289,9.8207,23.2304]
[1672553654051,76.39,9.8289,9.8208,23.2304]
[1672553654263,40.0,9.8288,9.8208,23.2304]
[1672553654792,40.0,9.8288,9.8209,23.9847]
[1672553655004,76.39,9.8289,9.8209,23.9847]
[1672553655210,796.00799633,9.8341,9.821,23.9847]
[1672553655211,40.0,9.8296,9.821,23.9847]
[1672553655524,40.0,9.8294,9.8211,23.9847]
[1672553655740,40.0,9.8292,9.8211,23.9847]
[1672553655953,76.39,9.8291,9.8212,23.9847]
[1672553656138,40.0,9.829,9.8212,23.9847]
[1672553656354,76.39,9.8289,9.8212,23.9847]
[1672553656571,40.0,9.8288,9.8213,23.9847]
[1672553657296,76.39,9.8289,9.8213,23.9847]
[1672553657630,40.0,9.829,9.8213,23.9847]
[1672553657835,40.0,9.8288,9.8214,17.24086771]
[1672553660341,76.39,9.8289,9.8214,17.24086771]
[1672553660769,76.39,9.8289,9.8214,41.44926771]
[1672553660980,76.39,9.8291,9.8214,41.44926771]
[1672553661393,76.39,9.8291,9.8215,24.2084]
[1672553662159,40.0,9.829,9.8215,24.2084]
[1672553662374,76.39,9.8289,9.8215,24.2084]
[1672553662682,76.39,9.8293,9.8216,17.23815234]
[1672553662895,40.0,9.8292,9.8216,17.23815234]
[1672553663091,76.39,9.8293,9.8216,17.23815234]
[1672553663298,40.0,9.8294,9.8216,17.23815234]
[1672553663516,40.0,9.8292,9.8217,24.2084]
[1672553666766,40.0,9.8292,9.8218,17.23543708]
[1672553667939,40.0,9.829,9.8218,17.23543708]
[1672553668151,40.0,9.8288,9.8218,17.23543708]
[1672553668342,76.39,9.8287,9.8218,17.23543708]
[1672553668553,40.0,9.8286,9.8218,17.23543708]
[1672553671182,40.0,9.8284,9.8218,17.23543708]
[1672553671393,40.0,9.8282,9.8218,17.23543708]
[1672553671601,76.4,9.8281,9.8218,17.23543708]
[1672553671825,40.0,9.828,9.8218,17.23543708]
[1672553675924,76.4,9.8281,9.8218,17.23543708]
[1672553676134,40.0,9.828,9.8218,17.23543708]
[1672553686634,40.0,9.828,9.8195,76.46]
[1672553686635,76.4,9.8279,9.8086,75.74299227]
[1672553686850,76.23400742,9.8251,9.8114,167.3042]
[1672553687062,40.0,9.8249,9.8115,167.3042]
[1672553687272,40.0,9.8247,9.8116,245.3899]
[1672553687504,40.0,9.8247,9.8118,40.0]
[1672553687505,40.0,9.8245,9.8118,40.0]
[1672553687693,40.0,9.8249,9.8118,40.0]
[1672553687694,76.23400742,9.8316,9.815,15.89153163]
[1672553688025,40.0,9.831,9.8153,40.0]
[1672553688249,40.0,9.8297,9.8156,40.0]
[1672553688449,40.0,9.8295,9.8159,40.0]
[1672553688647,76.39,9.8294,9.8161,305.8]
[1672553688857,40.0,9.8293,9.8163,305.8]
[1672553689066,40.0,9.8293,9.8162,136.49]
[1672553689067,40.0,9.8291,9.8166,40.0]
[1672553689271,40.0,9.8289,9.8169,40.0]
[1672553689491,76.39,9.8288,9.8171,305.8]
[1672553689684,40.0,9.8287,9.8174,40.0]
[1672553689898,40.0,9.8287,9.8176,305.8]
[1672553689899,40.0,9.8285,9.8176,305.8]
[1672553690110,76.4,9.8284,9.8178,305.8]
[1672553690339,40.0,9.8283,9.818,305.8]
[1672553690543,40.0,9.8283,9.8182,305.8]
[1672553690756,40.0,9.8283,9.8185,40.0]
[1672553690960,40.0,9.8283,9.8187,305.8]
[1672553691170,40.0,9.8283,9.8189,305.8]
[1672553691378,40.0,9.8283,9.8191,305.8]
[1672553691594,40.0,9.8281,9.8192,96.47]
[1672553692121,40.0,9.8281,9.8193,24.3792]
[1672553692333,40.0,9.8281,9.8194,76.47]
[1672553692547,40.0,9.8281,9.8195,20.0]
[1672553692736,40.0,9.8281,9.8196,382.26]
[1672553692944,40.0,9.8281,9.8197,20.0]
[1672553693169,40.0,9.8281,9.8198,76.46]
[1672553693388,40.0,9.8281,9.8198,99.7381]
[1672553693695,40.0,9.8281,9.8198,115.56440825]
[1672553693889,40.0,9.8281,9.8199,23.2781]
[1672553694099,40.0,9.8281,9.82,76.46]
[1672553694516,40.0,9.8281,9.8201,23.2781]
[1672553694733,40.0,9.8281,9.8202,76.46]
[1672553695488,40.0,9.8281,9.8203,23.2781]
[1672553695680,40.0,9.8281,9.8203,39.09761781]
[1672553695896,40.0,9.8281,9.8204,23.2781]
[1672553696427,40.0,9.8281,9.8205,23.0507]
[1672553696837,40.0,9.8279,9.8205,23.0507]
[1672553697043,40.0,9.8277,9.8205,23.0507]
[1672553698639,40.0,9.8275,9.8205,23.0507]
[1672553698848,40.0,9.8273,9.8205,23.0507]
[1672553699044,76.4,9.8272,9.8205,23.0507]
[1672553699250,40.0,9.8271,9.8205,23.0507]
[1672553699465,76.41,9.827,9.8205,23.0507]
[1672553699675,40.0,9.8273,9.8206,15.81544389]
[1672553699882,76.4,9.8272,9.8206,15.81544389]
[1672553700093,76.4,9.8276,9.8206,15.81544389]
[1672553700304,40.0,9.8275,9.8206,15.81544389]
[1672553700518,76.4,9.8274,9.8206,15.81544389]
[1672553700730,40.0,9.8273,9.8206,15.81544389]
[1672553700933,76.4,9.8272,9.8206,15.81544389]
[1672553701668,76.4,9.8274,9.8206,15.81544389]
[1672553701877,76.4,9.8276,9.8206,15.81544389]
[1672553702735,40.0,9.8279,9.8206,15.81544389]
[1672553702945,76.4,9.8278,9.8206,15.81544389]
[1672553703675,76.4,9.828,9.8206,15.81544389]
[1672553704093,40.0,9.8285,9.8206,15.81544389]
[1672553704304,76.4,9.8284,9.8206,15.81544389]
[1672553704621,40.0,9.8283,9.8206,15.81544389]
[1672553704830,40.0,9.8283,9.8207,22.9475]
[1672553704831,40.0,9.8281,9.8207,22.9475]
[1672553705152,40.0,9.8279,9.8207,22.9475]
[1672553705365,76.4,9.8278,9.8207,22.9475]
[1672553705561,76.4,9.8278,9.8208,15.81272807]
[1672553706189,40.0,9.8283,9.8208,15.81272807]
[1672553706400,40.0,9.8281,9.8208,15.81272807]
[1672553706733,76.4,9.828,9.8208,40.16982807]
[1672553706935,76.4,9.8282,9.8208,40.16982807]
[1672553707161,40.0,9.8281,9.8208,40.16982807]
[1672553707492,40.0,9.8279,9.8208,40.16982807]
[1672553707679,76.4,9.8278,9.8208,40.16982807]
[1672553707889,76.39,9.8286,9.8208,40.16982807]
[1672553708310,76.39,9.8286,9.8209,24.3571]
[1672553708529,76.39,9.829,9.8209,24.3571]
[1672553708747,151.51051584,9.8318,9.8211,40.0]
[1672553708748,76.39,9.8296,9.8211,40.0]
[1672553708955,40.0,9.8297,9.8211,40.0]
[1672553709272,40.0,9.8295,9.8211,40.0]
[1672553709480,40.0,9.8293,9.8212,23.1244]
[1672553709798,76.39,9.8292,9.8212,23.1244]
[1672553710000,40.0,9.8291,9.8213,23.1244]
[1672553710215,76.39,9.829,9.8213,23.1244]
[1672553710414,40.0,9.8289,9.8213,23.1244]
[1672553710625,40.0,9.8287,9.8214,23.1244]
[1672553710842,76.39,9.8286,9.8214,23.1244]
[1672553711054,40.0,9.8285,9.8214,23.1244]
[1672553711261,40.0,9.8291,9.8214,23.1244]
[1672553711262,76.4,9.8284,9.8214,23.1244]
[1672553711480,76.39,9.8294,9.8214,23.1244]
[1672553711672,40.0,9.8295,9.8215,23.1244]
[1672553711883,76.39,9.8294,9.8215,38.92762359]
[1672553712298,40.0,9.8293,9.8216,23.0549]
[1672553712533,76.39,9.8292,9.8216,23.0549]
[1672553712837,40.0,9.8291,9.8216,23.0549]
[1672553713037,76.39,9.829,9.8216,23.0549]
[1672553713877,40.0,9.8297,9.8216,23.0549]
[1672553714098,76.39,9.8296,9.8216,23.0549]
[1672553714310,76.38,9.8298,9.8216,23.0549]
[1672553714532,76.38,9.8298,9.8217,23.0549]
[1672553714933,40.0,9.8297,9.8217,23.0549]
[1672553715261,40.0,9.8295,9.8218,23.0549]
[1672553715474,76.39,9.8294,9.8218,23.0549]
[1672553715688,76.39,9.8294,9.8219,22.5987]
[1672553717679,40.0,9.8297,9.8219,22.5987]
[1672553718002,40.0,9.8295,9.8219,22.5987]
[1672553718200,76.39,9.8294,9.822,22.5987]
[1672553718410,76.39,9.8296,9.822,22.5987]
[1672553718626,76.38,9.8298,9.822,22.5987]
[1672553719465,76.38,9.8298,9.8221,22.7122]
[1672553719684,76.38,9.8298,9.8221,38.50727797]
[1672553720213,40.0,9.8297,9.8222,22.7122]
[1672553720525,40.0,9.8295,9.8222,22.7122]
[1672553720728,76.39,9.8294,9.8222,22.7122]
[1672553721156,76.39,9.8296,9.8222,22.7122]
[1672553721369,76.38,9.8298,9.8222,22.7122]
[1672553722929,76.38,9.8298,9.8223,15.79236299]
[1672553724094,76.38,9.8298,9.8223,39.73966299]
[1672553724922,152.61400742,9.8299,9.8223,39.73966299]
[1672553725142,76.38,9.8299,9.8223,39.73966299]
[1672553725564,152.61400742,9.8299,9.8223,39.73966299]
[1672553726316,76.38,9.8299,9.8223,39.73966299]
[1672553728507,40.0,9.8298,9.8223,39.73966299]
[1672553728717,76.38,9.8297,9.8223,39.73966299]
[1672553728940,40.0,9.8296,9.8223,39.73966299]
[1672553729132,76.39,9.8295,9.8223,39.73966299]
[1672553729873,40.0,9.8294,9.8223,39.73966299]
[1672553730077,40.0,9.8292,9.8223,39.73966299]
[1672553730286,76.39,9.8291,9.8223,39.73966299]
[1672553730498,40.0,9.8296,9.8223,39.73966299]
[1672553730717,40.0,9.8294,9.8223,39.73966299]
[1672553730925,76.39,9.8293,9.8223,39.73966299]
[1672553731149,40.0,9.8292,9.8223,39.73966299]
[1672553731347,40.0,9.829,9.8223,39.73966299]
[1672553731559,40.0,9.8288,9.8223,39.73966299]
[1672553731767,76.39,9.8287,9.8223,39.73966299]
[1672553731977,40.0,9.8286,9.8223,39.73966299]
[1672553732194,76.39,9.8285,9.8223,39.73966299]
[1672553732389,40.0,9.8284,9.8223,39.73966299]
[1672553732602,40.0,9.8282,9.8223,39.73966299]
[1672553732811,76.4,9.8281,9.8223,39.73966299]
[1672553733040,40.0,9.828,9.8223,39.73966299]
[1672553733247,40.0,9.8278,9.8223,39.73966299]
[1672553733444,40.0,9.8276,9.8223,39.73966299]
[1672553733652,76.4,9.8275,9.8223,39.73966299]
[1672553733874,40.0,9.8274,9.8223,45.46177784]
[1672553734086,40.0,9.8272,9.8223,45.46177784]
[1672553734294,76.41,9.8271,9.8223,45.46177784]
[1672553734506,40.0,9.827,9.8223,45.46177784]
[1672553734715,40.0,9.8268,9.8223,45.46177784]
[1672553734912,40.0,9.8266,9.8223,45.46177784]
[1672553735127,76.41,9.8265,9.8223,45.46177784]
[1672553735352,40.0,9.8264,9.8223,45.46177784]
[1672553735667,40.0,9.8262,9.8223,45.46177784]
[1672553735874,40.0,9.826,9.8223,45.46177784]
[1672553736090,40.0,9.8258,9.8223,45.46177784]
[1672553736402,40.0,9.8256,9.8223,45.46177784]
[1672553736601,40.0,9.8254,9.8223,21.51447784]
[1672553736802,76.42,9.8253,9.8223,21.51447784]
[1672553737008,451.72414469,9.8457,9.8223,21.51447784]
[1672553737245,40.0,9.8314,9.8223,21.51447784]
[1672553737452,40.0,9.8303,9.8223,21.51447784]
[1672553737671,40.0,9.8288,9.8214,111.4285]
[1672553737864,76.39,9.8287,9.8214,111.4285]
[1672553738075,40.0,9.8286,9.8214,111.4285]
[1672553738281,40.0,9.8284,9.8214,111.4285]
[1672553738490,40.0,9.8282,9.8214,111.4285]
[1672553738701,76.4,9.8281,9.8215,21.52580453]
[1672553738907,40.0,9.828,9.8215,21.52580453]
[1672553739123,40.0,9.8278,9.8215,21.52580453]
[1672553739345,40.0,9.8276,9.8215,21.52580453]
[1672553739542,76.4,9.8275,9.8215,21.52580453]
[1672553739874,40.0,9.8274,9.8215,21.52580453]
[1672553740078,40.0,9.8272,9.8215,21.52580453]
[1672553740394,40.0,9.827,9.8215,21.52580453]
[1672553740602,76.41,9.8269,9.8215,21.52580453]
[1672553740818,40.0,9.8268,9.8215,21.52580453]
[1672553741009,40.0,9.8266,9.8215,21.52580453]
[1672553741211,76.41,9.8265,9.8215,21.52580453]
[1672553741426,40.0,9.8264,9.8215,21.52580453]
[1672553744381,76.41,9.8265,9.8215,21.52580453]
[1672553744590,40.0,9.8262,9.8215,21.52580453]
[1672553744800,40.0,9.826,9.8215,21.52580453]
[1672553745016,40.0,9.8258,9.8215,21.52580453]
[1672553745224,76.42,9.8257,9.8215,21.52580453]
[1672553745450,40.0,9.8256,9.8215,21.52580453]
[1672553745648,40.0,9.8254,9.8215,21.52580453]
[1672553745860,76.42,9.8253,9.8215,21.52580453]
[1672553746602,40.0,9.8252,9.8215,21.52580453]
[1672553746814,40.0,9.825,9.8215,21.52580453]
[1672553747017,76.42,9.8249,9.8215,21.52580453]
[1672553747343,40.0,9.8248,9.8215,21.52580453]
[1672553747558,76.42,9.8247,9.8215,21.52580453]
[1672553748790,76.42,9.8249,9.8215,21.52580453]
[1672553749432,76.42,9.8251,9.8215,21.52580453]
[1672553749629,40.0,9.8254,9.8215,21.52580453]
[1672553749849,76.42,9.8253,9.8215,21.52580453]
[1672553750064,40.0,9.8252,9.8215,21.52580453]
[1672553750269,76.42,9.8255,9.8215,21.52580453]
[1672553750491,40.0,9.8254,9.8215,21.52580453]
[1672553750802,40.0,9.8252,9.8215,21.52580453]
[1672553754379,76.42,9.8253,9.8215,21.52580453]
[1672553754695,40.0,9.8254,9.8215,21.52580453]
[1672553754908,452.29813839,9.8419,9.8215,21.52580453]
[1672553755107,821.1,9.842,9.8215,21.52580453]
[1672553755321,40.0,9.8298,9.8215,21.52580453]
[1672553755731,40.0,9.8296,9.8215,21.52580453]
[1672553755957,40.0,9.8294,9.8216,23.092]
[1672553756167,40.0,9.8292,9.8216,23.092]
[1672553756377,76.39,9.8291,9.8216,23.092]
[1672553756594,40.0,9.829,9.8216,23.092]
[1672553756806,40.0,9.8288,9.8217,21.52297268]
[1672553757015,76.39,9.8287,9.8217,21.52297268]
[1672553757428,40.0,9.8288,9.8217,21.52297268]
[1672553757639,76.39,9.8287,9.8217,21.52297268]
[1672553758178,76.39,9.8289,9.8218,40.0]
[1672553758367,76.39,9.8297,9.8218,64.4522]
[1672553759008,76.39,9.8297,9.8219,24.4522]
[1672553759751,76.39,9.8297,9.8221,40.0]
[1672553760281,76.39,9.8297,9.8221,64.4522]
[1672553760682,76.39,9.8297,9.8221,24.4522]
[1672553761329,76.38,9.8298,9.8221,24.4522]
[1672553762909,76.38,9.8298,9.8222,22.5563]
[1672553763129,40.0,9.8297,9.8222,22.5563]
[1672553763308,76.39,9.8296,9.8222,22.5563]
[1672553763947,76.39,9.8296,9.8223,21.51447784]
[1672553764163,40.0,9.8297,9.8223,21.51447784]
[1672553764368,76.39,9.8296,9.8223,21.51447784]
[1672553765942,40.0,9.8295,9.8223,21.51447784]
[1672553766267,76.39,9.8294,9.8223,21.51447784]
[1672553767122,40.0,9.8293,9.8223,21.51447784]
[1672553767340,76.39,9.8292,9.8223,21.51447784]
[1672553767526,40.0,9.8295,9.8223,21.51447784]
[1672553767744,40.0,9.8293,9.8223,21.51447784]
[1672553767951,40.0,9.8291,9.8223,21.51447784]
[1672553768180,76.39,9.829,9.8223,21.51447784]
[1672553768389,40.0,9.8289,9.8223,21.51447784]
[1672553768600,40.0,9.8287,9.8223,21.51447784]
[1672553768808,76.39,9.8286,9.8223,21.51447784]
[1672553769242,76.39,9.8288,9.8223,21.51447784]
[1672553769543,40.0,9.8287,9.8223,21.51447784]
[1672553769740,40.0,9.8285,9.8223,21.51447784]
[1672553769947,76.4,9.8284,9.8223,21.51447784]
[1672553770812,76.39,9.8288,9.8223,21.51447784]
[1672553772495,40.0,9.8287,9.8223,21.51447784]
[1672553772712,76.39,9.8286,9.8223,21.51447784]
[1672553772909,40.0,9.8285,9.8223,21.51447784]
[1672553773119,76.4,9.8284,9.8223,21.51447784]
[1672553774372,76.39,9.8286,9.8223,21.51447784]
[1672553775228,40.0,9.8285,9.8223,21.51447784]
[1672553775439,76.4,9.8284,9.8223,21.51447784]
[1672553775643,40.0,9.8283,9.8223,21.51447784]
[1672553775855,40.0,9.8281,9.8223,21.51447784]
[1672553776066,40.0,9.8279,9.8223,21.51447784]
[1672553776395,40.0,9.8277,9.8223,21.51447784]
[1672553776588,76.4,9.8276,9.8223,21.51447784]
[1672553776797,40.0,9.8293,9.8223,21.51447784]
[1672553777006,76.39,9.8292,9.8223,21.51447784]
[1672553777227,40.0,9.8291,9.8223,21.51447784]
[1672553777433,76.39,9.829,9.8223,21.51447784]
[1672553778471,76.39,9.8296,9.8223,21.51447784]
[1672553778897,76.39,9.8297,9.8223,21.51447784]
[1672553780794,76.39,9.8297,9.8224,40.0]
[1672553781845,76.39,9.8297,9.8225,21.51164645]
[1672553782476,152.61400742,9.8301,9.8225,21.51164645]
[1672553782898,76.38,9.8301,9.8225,21.51164645]
[1672553783314,152.61400742,9.8301,9.8225,44.22264645]
[1672553783846,152.61400742,9.8301,9.8226,40.0]
[1672553784259,40.0,9.83,9.8225,44.22264645]
[1672553784470,76.38,9.8299,9.8225,44.22264645]
[1672553784686,40.0,9.8298,9.8227,21.50881518]
[1672553784896,40.0,9.8296,9.8227,21.50881518]
[1672553785106,40.0,9.8294,9.8227,21.50881518]
[1672553785316,76.39,9.8293,9.8227,21.50881518]